[Event "Titled Tuesday Blitz July 25 Late 2023"]
[White "Tarnowska, Aleksandra"]
[Black "Foerster-Yialamas, Lucas"]
[WhiteFideId "1180967"]
[BlackFideId "30901774"]
[WhiteElo "2097"]
[BlackElo "2396"]
[Result "1-0"]
[Round "3"]
[TimeControl "180+2"]
[Date "2023.07.25"]
[WhiteClock "0:00:08"]
[BlackClock "0:00:02"]
[Board "187"]

1. e4 {[%clk 0:03:00]}  e5 {[%clk 0:02:58]} 2. Nf3 {[%clk 0:03:01]}  Nc6 {[%clk 0:02:58]} 3. Bb5 {[%clk 0:03:00]}  Nf6 {[%clk 0:02:56]} 4. O-O {[%clk 0:02:46]}  Bc5 {[%clk 0:02:49]} 5. c3 {[%clk 0:02:43]}  a6 {[%clk 0:02:35]} 6. Ba4 {[%clk 0:02:42]}  Nxe4 {[%clk 0:02:20]} 7. d4 {[%clk 0:02:19]}  exd4 {[%clk 0:02:03]} 8. cxd4 {[%clk 0:02:19]}  Bb4 {[%clk 0:02:01]} 9. d5 {[%clk 0:02:12]}  Ne7 {[%clk 0:01:58]} 10. Qd4 {[%clk 0:02:01]}  Nf6 {[%clk 0:01:29]} 11. Qxb4 {[%clk 0:01:56]}  Nfxd5 {[%clk 0:01:30]} 12. Qd4 {[%clk 0:01:21]}  O-O {[%clk 0:01:27]} 13. Nc3 {[%clk 0:01:16]}  Nb6 {[%clk 0:01:16]} 14. Bc2 {[%clk 0:01:14]}  d5 {[%clk 0:01:16]} 15. Bxh7+ {[%clk 0:00:59]}  Kxh7 {[%clk 0:01:12]} 16. Qh4+ {[%clk 0:01:00]}  Kg8 {[%clk 0:01:07]} 17. Ng5 {[%clk 0:01:00]}  Bf5 {[%clk 0:01:06]} 18. g4 {[%clk 0:00:48]}  Bg6 {[%clk 0:00:59]} 19. f4 {[%clk 0:00:49]}  f5 {[%clk 0:00:58]} 20. Ne6 {[%clk 0:00:47]}  Qd7 {[%clk 0:00:48]} 21. Nxf8 {[%clk 0:00:47]}  Rxf8 {[%clk 0:00:49]} 22. g5 {[%clk 0:00:46]}  d4 {[%clk 0:00:47]} 23. Ne2 {[%clk 0:00:45]}  d3 {[%clk 0:00:47]} 24. Nc3 {[%clk 0:00:40]}  d2 {[%clk 0:00:46]} 25. Bxd2 {[%clk 0:00:38]}  Qxd2 {[%clk 0:00:47]} 26. Rf2 {[%clk 0:00:35]}  Qd4 {[%clk 0:00:46]} 27. Rd1 {[%clk 0:00:34]}  Qc5 {[%clk 0:00:43]} 28. Qg3 {[%clk 0:00:23]}  Nbd5 {[%clk 0:00:42]} 29. Nxd5 {[%clk 0:00:22]}  Nxd5 {[%clk 0:00:43]} 30. Qd3 {[%clk 0:00:12]}  Nxf4 {[%clk 0:00:41]} 31. Qb3+ {[%clk 0:00:05]}  Kh7 {[%clk 0:00:36]} 32. Kf1 {[%clk 0:00:04]}  Nh5 {[%clk 0:00:35]} 33. Rd3 {[%clk 0:00:03]}  f4 {[%clk 0:00:35]} 34. Rh3 {[%clk 0:00:03]}  Qxg5 {[%clk 0:00:35]} 35. Qf3 {[%clk 0:00:03]}  Rd8 {[%clk 0:00:33]} 36. Re2 {[%clk 0:00:03]}  Bd3 {[%clk 0:00:33]} 37. Rxh5+ {[%clk 0:00:02]}  Kg6 {[%clk 0:00:20]} 38. Rxg5+ {[%clk 0:00:02]}  Kxg5 {[%clk 0:00:21]} 39. h4+ {[%clk 0:00:02]}  Kf5 {[%clk 0:00:21]} 40. Qh5+ {[%clk 0:00:02]}  Kf6 {[%clk 0:00:20]} 41. Qg5+ {[%clk 0:00:02]}  Kf7 {[%clk 0:00:20]} 42. Qxf4+ {[%clk 0:00:02]}  Kg8 {[%clk 0:00:19]} 43. Qe3 {[%clk 0:00:02]}  Rf8+ {[%clk 0:00:17]} 44. Kg2 {[%clk 0:00:03]}  Bxe2 {[%clk 0:00:17]} 45. Qxe2 {[%clk 0:00:04]}  c6 {[%clk 0:00:13]} 46. Qc4+ {[%clk 0:00:04]}  Kh8 {[%clk 0:00:12]} 47. Qb4 {[%clk 0:00:05]}  b5 {[%clk 0:00:11]} 48. Qg4 {[%clk 0:00:05]}  Rf6 {[%clk 0:00:11]} 49. h5 {[%clk 0:00:05]}  Kh7 {[%clk 0:00:12]} 50. Qe4+ {[%clk 0:00:05]}  Kh6 {[%clk 0:00:11]} 51. Kh3 {[%clk 0:00:05]}  Kxh5 {[%clk 0:00:12]} 52. Qg4+ {[%clk 0:00:06]}  Kh6 {[%clk 0:00:12]} 53. Qh4+ {[%clk 0:00:06]}  Kg6 {[%clk 0:00:12]} 54. Qe4+ {[%clk 0:00:07]}  Kf7 {[%clk 0:00:11]} 55. Kg4 {[%clk 0:00:07]}  Kg8 {[%clk 0:00:11]} 56. Qe8+ {[%clk 0:00:07]}  Kh7 {[%clk 0:00:11]} 57. Kh5 {[%clk 0:00:08]}  a5 {[%clk 0:00:10]} 58. b3 {[%clk 0:00:07]}  Rh6+ {[%clk 0:00:09]} 59. Kg5 {[%clk 0:00:07]}  Rf6 {[%clk 0:00:10]} 60. Qd8 {[%clk 0:00:07]}  Rh6 {[%clk 0:00:06]} 61. Qxa5 {[%clk 0:00:06]}  Rf6 {[%clk 0:00:04]} 62. Qc3 {[%clk 0:00:06]}  Rh6 {[%clk 0:00:04]} 63. Qd3+ {[%clk 0:00:06]}  Kg8 {[%clk 0:00:04]} 64. Qd8+ {[%clk 0:00:06]}  Kf7 {[%clk 0:00:04]} 65. Qd7+ {[%clk 0:00:07]}  Kf8 {[%clk 0:00:05]} 66. a4 {[%clk 0:00:06]}  bxa4 {[%clk 0:00:04]} 67. bxa4 {[%clk 0:00:07]}  Rf6 {[%clk 0:00:04]} 68. a5 {[%clk 0:00:07]}  c5 {[%clk 0:00:05]} 69. Qc8+ {[%clk 0:00:07]}  Ke7 {[%clk 0:00:04]} 70. Qxc5+ {[%clk 0:00:08]}  Kd7 {[%clk 0:00:04]} 71. Qb5+ {[%clk 0:00:08]}  Kc7 {[%clk 0:00:04]} 72. a6 {[%clk 0:00:08]}  Rb6 {[%clk 0:00:04]} 73. Qc5+ {[%clk 0:00:08]}  Rc6 {[%clk 0:00:02]} 74. Qe7+ {[%clk 0:00:08]}  Kb6 {[%clk 0:00:03]} 75. Qb7+ {[%clk 0:00:07]}  Kc5 {[%clk 0:00:02]} 76. a7 {[%clk 0:00:07]}  Rb6 {[%clk 0:00:03]} 77. a8=Q {[%clk 0:00:07]}  Rxb7 {[%clk 0:00:02]} 78. Qxb7 {[%clk 0:00:08]} 1-0


[Site "https://www.chess.com"]

[Event "Titled Tuesday Blitz July 25 Late 2023"]
[White "Haitin, Ilja"]
[Black "Gyulamiryan-koryun"]
[WhiteFideId "4501764"]
[WhiteElo "2373"]
[BlackElo "2053"]
[Result "1-0"]
[Round "3"]
[TimeControl "180+2"]
[Date "2023.07.25"]
[WhiteClock "0:02:46"]
[BlackClock "0:01:22"]
[Board "191"]

1. Nf3 {[%clk 0:03:00]}  Nf6 {[%clk 0:02:49]} 2. b3 {[%clk 0:03:00]}  g6 {[%clk 0:02:45]} 3. Bb2 {[%clk 0:03:00]}  Bg7 {[%clk 0:02:46]} 4. e3 {[%clk 0:03:01]}  O-O {[%clk 0:02:46]} 5. d4 {[%clk 0:03:01]}  c6 {[%clk 0:02:46]} 6. c4 {[%clk 0:02:59]}  e6 {[%clk 0:02:46]} 7. Be2 {[%clk 0:02:58]}  d5 {[%clk 0:02:46]} 8. O-O {[%clk 0:02:58]}  Nbd7 {[%clk 0:02:45]} 9. Nc3 {[%clk 0:02:59]}  a6 {[%clk 0:02:44]} 10. Rc1 {[%clk 0:03:00]}  Qa5 {[%clk 0:02:38]} 11. a3 {[%clk 0:02:58]}  b5 {[%clk 0:02:29]} 12. b4 {[%clk 0:02:58]}  Qd8 {[%clk 0:02:27]} 13. c5 {[%clk 0:02:57]}  e5 {[%clk 0:02:25]} 14. Nxe5 {[%clk 0:02:52]}  Nxe5 {[%clk 0:02:24]} 15. dxe5 {[%clk 0:02:53]}  h5 {[%clk 0:02:13]} 16. exf6 {[%clk 0:02:52]}  Bxf6 {[%clk 0:02:13]} 17. Qd2 {[%clk 0:02:48]}  d4 {[%clk 0:02:03]} 18. exd4 {[%clk 0:02:47]}  Bxd4 {[%clk 0:02:03]} 19. Bf3 {[%clk 0:02:47]}  Bd7 {[%clk 0:01:22]} 20. Qxd4 {[%clk 0:02:46]} 1-0


[Site "https://www.chess.com"]

[Event "Titled Tuesday Blitz July 25 Late 2023"]
[White "Winkels, Marcel"]
[Black "Campos, Maria Jose"]
[WhiteFideId "1003887"]
[BlackFideId "146803"]
[WhiteElo "2049"]
[BlackElo "2369"]
[Result "1-0"]
[Round "3"]
[TimeControl "180+2"]
[Date "2023.07.25"]
[WhiteClock "0:01:27"]
[BlackClock "0:01:37"]
[Board "192"]

1. e4 {[%clk 0:03:00]}  e5 {[%clk 0:02:59]} 2. d4 {[%clk 0:02:59]}  exd4 {[%clk 0:02:59]} 3. Nf3 {[%clk 0:02:59]}  Nc6 {[%clk 0:03:00]} 4. Bb5 {[%clk 0:02:58]}  Nf6 {[%clk 0:02:55]} 5. e5 {[%clk 0:02:55]}  Ne4 {[%clk 0:02:53]} 6. O-O {[%clk 0:02:48]}  Be7 {[%clk 0:02:49]} 7. Re1 {[%clk 0:02:43]}  d5 {[%clk 0:02:49]} 8. exd6 {[%clk 0:02:34]}  Nxd6 {[%clk 0:02:48]} 9. Bxc6+ {[%clk 0:02:34]}  bxc6 {[%clk 0:02:48]} 10. Nxd4 {[%clk 0:02:35]}  Bd7 {[%clk 0:02:46]} 11. Qe2 {[%clk 0:02:33]}  Kf8 {[%clk 0:02:44]} 12. Nc3 {[%clk 0:02:27]}  Bf6 {[%clk 0:02:44]} 13. Be3 {[%clk 0:02:19]}  g6 {[%clk 0:02:36]} 14. Qf3 {[%clk 0:02:17]}  c5 {[%clk 0:02:33]} 15. Bh6+ {[%clk 0:02:16]}  Bg7 {[%clk 0:02:32]} 16. Bxg7+ {[%clk 0:02:15]}  Kxg7 {[%clk 0:02:33]} 17. Nde2 {[%clk 0:02:12]}  Bf5 {[%clk 0:02:29]} 18. Ng3 {[%clk 0:02:10]}  Bxc2 {[%clk 0:02:26]} 19. Nd5 {[%clk 0:02:06]}  Ba4 {[%clk 0:02:14]} 20. Qc3+ {[%clk 0:02:03]}  Kh6 {[%clk 0:02:14]} 21. Re5 {[%clk 0:01:55]}  c6 {[%clk 0:01:49]} 22. Ne3 {[%clk 0:01:47]}  c4 {[%clk 0:01:49]} 23. b3 {[%clk 0:01:39]}  cxb3 {[%clk 0:01:47]} 24. axb3 {[%clk 0:01:38]}  Bb5 {[%clk 0:01:47]} 25. Ng4+ {[%clk 0:01:29]}  Kg7 {[%clk 0:01:41]} 26. Re8+ {[%clk 0:01:28]}  f6 {[%clk 0:01:37]} 27. Rxd8 {[%clk 0:01:27]}  Rhxd8 {[%clk 0:01:37]} 28. Qxf6+ {[%clk 0:01:27]}  Kg8 {[%clk 0:01:37]} 29. Nh6# {[%clk 0:01:27]} 1-0


[Site "https://www.chess.com"]

[Event "Titled Tuesday Blitz July 25 Late 2023"]
[White "Gerbelli Neto, Eduardo"]
[Black "Blackwhite017"]
[WhiteFideId "2103281"]
[WhiteElo "2365"]
[BlackElo "2032"]
[Result "1-0"]
[Round "3"]
[TimeControl "180+2"]
[Date "2023.07.25"]
[WhiteClock "0:01:01"]
[BlackClock "0:00:00"]
[Board "194"]

1. e4 {[%clk 0:03:00]}  c5 {[%clk 0:02:59]} 2. Nc3 {[%clk 0:03:00]}  g6 {[%clk 0:02:58]} 3. f4 {[%clk 0:03:01]}  Bg7 {[%clk 0:02:57]} 4. Nf3 {[%clk 0:03:02]}  Nc6 {[%clk 0:02:58]} 5. Bc4 {[%clk 0:03:01]}  e6 {[%clk 0:02:58]} 6. f5 {[%clk 0:03:01]}  Nge7 {[%clk 0:02:51]} 7. fxe6 {[%clk 0:03:01]}  fxe6 {[%clk 0:02:48]} 8. d3 {[%clk 0:03:02]}  O-O {[%clk 0:02:47]} 9. O-O {[%clk 0:03:02]}  b6 {[%clk 0:02:45]} 10. Bg5 {[%clk 0:03:00]}  Qc7 {[%clk 0:02:43]} 11. Qe1 {[%clk 0:02:59]}  Bb7 {[%clk 0:02:38]} 12. Qh4 {[%clk 0:02:59]}  Rae8 {[%clk 0:02:33]} 13. Nb5 {[%clk 0:02:14]}  Qb8 {[%clk 0:02:27]} 14. c3 {[%clk 0:02:14]}  a6 {[%clk 0:02:24]} 15. Na3 {[%clk 0:02:13]}  b5 {[%clk 0:01:50]} 16. Bb3 {[%clk 0:02:13]}  d5 {[%clk 0:01:46]} 17. Rae1 {[%clk 0:02:02]}  b4 {[%clk 0:01:38]} 18. cxb4 {[%clk 0:01:56]}  Bxb2 {[%clk 0:01:37]} 19. Nc2 {[%clk 0:01:53]}  cxb4 {[%clk 0:01:29]} 20. Nxb4 {[%clk 0:01:42]}  Nxb4 {[%clk 0:00:46]} 21. Bxe7 {[%clk 0:01:42]}  Nxd3 {[%clk 0:00:41]} 22. Bxf8 {[%clk 0:01:27]}  Nxe1 {[%clk 0:00:38]} 23. Ng5 {[%clk 0:01:17]}  h5 {[%clk 0:00:14]} 24. Qxe1 {[%clk 0:01:10]}  Rxf8 {[%clk 0:00:09]} 25. Nxe6 {[%clk 0:01:10]}  Rxf1+ {[%clk 0:00:04]} 26. Qxf1 {[%clk 0:01:11]}  Qd6 {[%clk 0:00:01]} 27. exd5 {[%clk 0:01:07]}  Bxd5 {[%clk 0:00:00]} 28. Qd3 {[%clk 0:01:01]} 1-0


[Site "https://www.chess.com"]

[Event "Titled Tuesday Blitz July 25 Late 2023"]
[White "dorpato"]
[Black "Cooklev, Steven"]
[BlackFideId "2050552"]
[WhiteElo "2032"]
[BlackElo "2364"]
[Result "0-1"]
[Round "3"]
[TimeControl "180+2"]
[Date "2023.07.25"]
[WhiteClock "0:00:00"]
[BlackClock "0:00:11"]
[Board "195"]

1. e4 {[%clk 0:03:00]}  c5 {[%clk 0:03:00]} 2. Nf3 {[%clk 0:02:58]}  Nc6 {[%clk 0:03:00]} 3. d4 {[%clk 0:02:53]}  cxd4 {[%clk 0:03:01]} 4. Nxd4 {[%clk 0:02:52]}  e5 {[%clk 0:03:02]} 5. Nb5 {[%clk 0:02:50]}  d6 {[%clk 0:03:01]} 6. N1c3 {[%clk 0:02:42]}  a6 {[%clk 0:03:01]} 7. Na3 {[%clk 0:02:41]}  Be7 {[%clk 0:03:01]} 8. Nd5 {[%clk 0:02:37]}  Nf6 {[%clk 0:03:00]} 9. f3 {[%clk 0:02:14]}  Nxd5 {[%clk 0:02:49]} 10. exd5 {[%clk 0:02:02]}  Nb8 {[%clk 0:02:41]} 11. c4 {[%clk 0:01:50]}  O-O {[%clk 0:02:38]} 12. Bd3 {[%clk 0:01:40]}  Nd7 {[%clk 0:02:15]} 13. b4 {[%clk 0:01:06]}  a5 {[%clk 0:01:52]} 14. Nc2 {[%clk 0:00:52]}  axb4 {[%clk 0:01:48]} 15. Nxb4 {[%clk 0:00:51]}  Nc5 {[%clk 0:01:43]} 16. O-O {[%clk 0:00:46]}  f5 {[%clk 0:01:35]} 17. Be3 {[%clk 0:00:39]}  Nxd3 {[%clk 0:01:12]} 18. Qxd3 {[%clk 0:00:32]}  f4 {[%clk 0:01:12]} 19. Bf2 {[%clk 0:00:09]}  Bf5 {[%clk 0:01:13]} 20. Qd2 {[%clk 0:00:08]}  Ra4 {[%clk 0:00:49]} 21. a3 {[%clk 0:00:05]}  Qa5 {[%clk 0:00:40]} 22. Qc3 {[%clk 0:00:02]}  Rc8 {[%clk 0:00:29]} 23. Qb3 {[%clk 0:00:02]}  Bd8 {[%clk 0:00:26]} 24. Rfc1 {[%clk 0:00:03]}  Bb6 {[%clk 0:00:25]} 25. Bxb6 {[%clk 0:00:03]}  Qxb6+ {[%clk 0:00:26]} 26. Kh1 {[%clk 0:00:03]}  Ra5 {[%clk 0:00:25]} 27. a4 {[%clk 0:00:01]}  Rca8 {[%clk 0:00:22]} 28. Ra3 {[%clk 0:00:01]}  Kf8 {[%clk 0:00:15]} 29. Rca1 {[%clk 0:00:02]}  Qd4 {[%clk 0:00:14]} 30. Nc2 {[%clk 0:00:01]}  Qd2 {[%clk 0:00:11]} 31. Ne1 {[%clk 0:00:00]}  Qf2 {[%clk 0:00:11]} 0-1


[Site "https://www.chess.com"]

[Event "Titled Tuesday Blitz July 25 Late 2023"]
[White "zano2023"]
[Black "Zhou, Qiyu"]
[BlackFideId "505161"]
[WhiteElo "2000"]
[BlackElo "2359"]
[Result "1-0"]
[Round "3"]
[TimeControl "180+2"]
[Date "2023.07.25"]
[WhiteClock "0:00:19"]
[BlackClock "0:00:00"]
[Board "198"]

1. d4 {[%clk 0:03:00]}  Nf6 {[%clk 0:02:59]} 2. Nd2 {[%clk 0:03:00]}  d5 {[%clk 0:02:58]} 3. Ngf3 {[%clk 0:03:00]}  e6 {[%clk 0:02:58]} 4. e3 {[%clk 0:03:00]}  c5 {[%clk 0:02:57]} 5. c3 {[%clk 0:03:00]}  Nc6 {[%clk 0:02:57]} 6. Bd3 {[%clk 0:03:00]}  Be7 {[%clk 0:02:57]} 7. O-O {[%clk 0:03:01]}  O-O {[%clk 0:02:58]} 8. dxc5 {[%clk 0:03:02]}  Bxc5 {[%clk 0:02:59]} 9. e4 {[%clk 0:03:02]}  dxe4 {[%clk 0:02:57]} 10. Nxe4 {[%clk 0:03:03]}  Nxe4 {[%clk 0:02:50]} 11. Bxe4 {[%clk 0:03:04]}  Qc7 {[%clk 0:02:44]} 12. Qe2 {[%clk 0:03:00]}  h6 {[%clk 0:01:58]} 13. Rd1 {[%clk 0:02:58]}  Bd7 {[%clk 0:01:50]} 14. Bc2 {[%clk 0:02:54]}  Ne7 {[%clk 0:01:45]} 15. Qd3 {[%clk 0:02:31]}  Rfd8 {[%clk 0:01:36]} 16. Qh7+ {[%clk 0:02:29]}  Kf8 {[%clk 0:01:36]} 17. Qh8+ {[%clk 0:02:29]}  Ng8 {[%clk 0:01:37]} 18. Bh7 {[%clk 0:02:27]}  Ke7 {[%clk 0:01:36]} 19. Qxg7 {[%clk 0:02:27]}  Bc6 {[%clk 0:01:22]} 20. Bxh6 {[%clk 0:02:11]}  Nxh6 {[%clk 0:01:07]} 21. Qg5+ {[%clk 0:01:52]}  f6 {[%clk 0:01:05]} 22. Qxh6 {[%clk 0:01:52]}  Rxd1+ {[%clk 0:00:56]} 23. Rxd1 {[%clk 0:01:51]}  Rf8 {[%clk 0:00:57]} 24. Bg6 {[%clk 0:01:44]}  Be8 {[%clk 0:00:35]} 25. Qh7+ {[%clk 0:01:30]}  Bf7 {[%clk 0:00:35]} 26. Qg7 {[%clk 0:01:08]}  Qb6 {[%clk 0:00:25]} 27. Rd2 {[%clk 0:01:02]}  Qc7 {[%clk 0:00:14]} 28. Bxf7 {[%clk 0:00:38]}  Rxf7 {[%clk 0:00:14]} 29. Qh6 {[%clk 0:00:38]}  b5 {[%clk 0:00:08]} 30. Nh4 {[%clk 0:00:38]}  b4 {[%clk 0:00:06]} 31. Ng6+ {[%clk 0:00:38]}  Ke8 {[%clk 0:00:07]} 32. Qh8+ {[%clk 0:00:37]}  Bf8 {[%clk 0:00:07]} 33. Nxf8 {[%clk 0:00:30]}  Rxf8 {[%clk 0:00:08]} 34. Qh5+ {[%clk 0:00:30]}  Ke7 {[%clk 0:00:07]} 35. cxb4 {[%clk 0:00:20]}  Qc1+ {[%clk 0:00:05]} 36. Rd1 {[%clk 0:00:20]}  Qxb2 {[%clk 0:00:05]} 37. Qc5+ {[%clk 0:00:20]}  Kf7 {[%clk 0:00:05]} 38. Rd7+ {[%clk 0:00:20]}  Kg8 {[%clk 0:00:06]} 39. h3 {[%clk 0:00:20]}  Qxa2 {[%clk 0:00:02]} 40. Qe7 {[%clk 0:00:20]}  Qa1+ {[%clk 0:00:02]} 41. Kh2 {[%clk 0:00:19]}  Qe5+ {[%clk 0:00:00]} 42. g3 {[%clk 0:00:19]} 1-0


[Site "https://www.chess.com"]

[Event "Titled Tuesday Blitz July 25 Late 2023"]
[White "Burke, Paul"]
[Black "Papp, Petra"]
[WhiteFideId "2605767"]
[BlackFideId "739049"]
[WhiteElo "1913"]
[BlackElo "2339"]
[Result "1-0"]
[Round "3"]
[TimeControl "180+2"]
[Date "2023.07.25"]
[WhiteClock "0:00:31"]
[BlackClock "0:00:00"]
[Board "202"]

1. e4 {[%clk 0:02:35]}  c5 {[%clk 0:02:50]} 2. d4 {[%clk 0:02:35]}  cxd4 {[%clk 0:02:50]} 3. c3 {[%clk 0:02:36]}  d3 {[%clk 0:02:50]} 4. Bxd3 {[%clk 0:02:35]}  Nc6 {[%clk 0:02:51]} 5. Bc4 {[%clk 0:02:35]}  g6 {[%clk 0:02:50]} 6. Nf3 {[%clk 0:02:35]}  Bg7 {[%clk 0:02:49]} 7. Bg5 {[%clk 0:02:34]}  h6 {[%clk 0:02:47]} 8. Qb3 {[%clk 0:02:33]}  hxg5 {[%clk 0:02:40]} 9. Bxf7+ {[%clk 0:02:33]}  Kf8 {[%clk 0:02:40]} 10. Bxg8 {[%clk 0:02:32]}  Rxg8 {[%clk 0:02:37]} 11. Nxg5 {[%clk 0:02:31]}  e6 {[%clk 0:02:35]} 12. h4 {[%clk 0:02:27]}  Qe7 {[%clk 0:02:16]} 13. Nd2 {[%clk 0:02:24]}  b6 {[%clk 0:02:11]} 14. O-O-O {[%clk 0:02:23]}  Bb7 {[%clk 0:01:42]} 15. f4 {[%clk 0:02:21]}  Rc8 {[%clk 0:01:34]} 16. h5 {[%clk 0:02:20]}  Nd4 {[%clk 0:01:28]} 17. Qa4 {[%clk 0:02:06]}  Bc6 {[%clk 0:01:25]} 18. Qa6 {[%clk 0:01:54]}  Bb5 {[%clk 0:00:46]} 19. Qxc8+ {[%clk 0:01:51]}  Qe8 {[%clk 0:00:42]} 20. Qxe8+ {[%clk 0:01:46]}  Kxe8 {[%clk 0:00:39]} 21. cxd4 {[%clk 0:01:46]}  Ke7 {[%clk 0:00:38]} 22. Nb3 {[%clk 0:01:41]}  a5 {[%clk 0:00:32]} 23. d5 {[%clk 0:01:34]}  e5 {[%clk 0:00:24]} 24. hxg6 {[%clk 0:01:29]}  exf4 {[%clk 0:00:22]} 25. d6+ {[%clk 0:01:23]}  Kf6 {[%clk 0:00:19]} 26. Nf3 {[%clk 0:01:16]}  Kxg6 {[%clk 0:00:18]} 27. e5 {[%clk 0:01:15]}  Be2 {[%clk 0:00:16]} 28. Rd2 {[%clk 0:01:14]}  Ba6 {[%clk 0:00:14]} 29. Nbd4 {[%clk 0:01:09]}  a4 {[%clk 0:00:08]} 30. Rh4 {[%clk 0:01:07]}  Kf7 {[%clk 0:00:08]} 31. Rxf4+ {[%clk 0:01:06]}  Kg6 {[%clk 0:00:07]} 32. Rg4+ {[%clk 0:01:04]}  Kf7 {[%clk 0:00:07]} 33. Nf5 {[%clk 0:00:49]}  Rc8+ {[%clk 0:00:02]} 34. Kb1 {[%clk 0:00:48]}  Bf8 {[%clk 0:00:02]} 35. Ng5+ {[%clk 0:00:43]}  Ke8 {[%clk 0:00:02]} 36. Nh7 {[%clk 0:00:40]}  Kf7 {[%clk 0:00:01]} 37. Nxf8 {[%clk 0:00:37]}  Kxf8 {[%clk 0:00:01]} 38. Rh4 {[%clk 0:00:35]}  Kf7 {[%clk 0:00:01]} 39. Rh7+ {[%clk 0:00:34]}  Ke6 {[%clk 0:00:02]} 40. Ne7 {[%clk 0:00:33]}  Rf8 {[%clk 0:00:00]} 41. Rh1 {[%clk 0:00:31]} 1-0


[Site "https://www.chess.com"]

[Event "Titled Tuesday Blitz July 25 Late 2023"]
[White "Nakamura, Hikaru"]
[Black "Rodrigue-Lemieux, Shawn"]
[WhiteFideId "2016192"]
[BlackFideId "2620049"]
[WhiteElo "3272"]
[BlackElo "2896"]
[Result "1-0"]
[Round "4"]
[TimeControl "180+2"]
[Date "2023.07.25"]
[WhiteClock "0:02:23"]
[BlackClock "0:01:16"]
[Board "1"]

1. a3 {[%clk 0:03:00]}  h5 {[%clk 0:02:57]} 2. e4 {[%clk 0:02:58]}  g6 {[%clk 0:02:55]} 3. d4 {[%clk 0:02:58]}  Bg7 {[%clk 0:02:55]} 4. Nf3 {[%clk 0:02:58]}  d6 {[%clk 0:02:55]} 5. Bc4 {[%clk 0:02:58]}  Nf6 {[%clk 0:02:54]} 6. Qe2 {[%clk 0:02:57]}  d5 {[%clk 0:02:49]} 7. exd5 {[%clk 0:02:56]}  Nxd5 {[%clk 0:02:50]} 8. h3 {[%clk 0:02:54]}  c6 {[%clk 0:02:50]} 9. O-O {[%clk 0:02:53]}  Nd7 {[%clk 0:02:49]} 10. Re1 {[%clk 0:02:49]}  N7f6 {[%clk 0:02:47]} 11. Bd3 {[%clk 0:02:45]}  Bf5 {[%clk 0:02:27]} 12. c4 {[%clk 0:02:42]}  Bxd3 {[%clk 0:02:25]} 13. Qxd3 {[%clk 0:02:43]}  Nc7 {[%clk 0:02:25]} 14. Nc3 {[%clk 0:02:40]}  O-O {[%clk 0:02:22]} 15. Qe2 {[%clk 0:02:41]}  e6 {[%clk 0:02:11]} 16. Bf4 {[%clk 0:02:37]}  a6 {[%clk 0:02:04]} 17. Rad1 {[%clk 0:02:34]}  b5 {[%clk 0:02:01]} 18. b3 {[%clk 0:02:35]}  bxc4 {[%clk 0:01:58]} 19. bxc4 {[%clk 0:02:35]}  Rb8 {[%clk 0:01:58]} 20. Ne5 {[%clk 0:02:34]}  Rb3 {[%clk 0:01:47]} 21. Qc2 {[%clk 0:02:28]}  Rb7 {[%clk 0:01:35]} 22. Nxc6 {[%clk 0:02:25]}  Qe8 {[%clk 0:01:36]} 23. Na5 {[%clk 0:02:24]}  Ra7 {[%clk 0:01:34]} 24. Bd6 {[%clk 0:02:24]}  Na8 {[%clk 0:01:16]} 25. d5 {[%clk 0:02:23]} 1-0


[Site "https://www.chess.com"]

[Event "Titled Tuesday Blitz July 25 Late 2023"]
[White "Dardha, Daniel"]
[Black "Bluebaum, Matthias"]
[WhiteFideId "240990"]
[BlackFideId "24651516"]
[WhiteElo "2873"]
[BlackElo "3044"]
[Result "1/2-1/2"]
[Round "4"]
[TimeControl "180+2"]
[Date "2023.07.25"]
[WhiteClock "0:00:07"]
[BlackClock "0:00:22"]
[Board "5"]

1. c4 {[%clk 0:03:00]}  e6 {[%clk 0:02:59]} 2. Nc3 {[%clk 0:02:57]}  d5 {[%clk 0:03:00]} 3. e3 {[%clk 0:02:56]}  Nf6 {[%clk 0:03:00]} 4. Nf3 {[%clk 0:02:55]}  Bd6 {[%clk 0:03:01]} 5. b3 {[%clk 0:02:54]}  O-O {[%clk 0:03:01]} 6. Bb2 {[%clk 0:02:54]}  c5 {[%clk 0:03:02]} 7. cxd5 {[%clk 0:02:53]}  exd5 {[%clk 0:03:03]} 8. d4 {[%clk 0:02:53]}  Nc6 {[%clk 0:03:03]} 9. Be2 {[%clk 0:02:53]}  cxd4 {[%clk 0:03:04]} 10. Nxd4 {[%clk 0:02:53]}  Nxd4 {[%clk 0:03:04]} 11. Qxd4 {[%clk 0:02:52]}  Re8 {[%clk 0:03:05]} 12. Rd1 {[%clk 0:02:47]}  Be5 {[%clk 0:03:05]} 13. Qd3 {[%clk 0:02:46]}  Bg4 {[%clk 0:03:05]} 14. O-O {[%clk 0:02:25]}  Bxe2 {[%clk 0:02:40]} 15. Qxe2 {[%clk 0:02:26]}  d4 {[%clk 0:02:41]} 16. Nb5 {[%clk 0:02:18]}  Qb8 {[%clk 0:02:41]} 17. Bxd4 {[%clk 0:01:53]}  Bxh2+ {[%clk 0:02:41]} 18. Kh1 {[%clk 0:01:54]}  Be5 {[%clk 0:02:42]} 19. Qf3 {[%clk 0:01:50]}  a6 {[%clk 0:02:35]} 20. Bxe5 {[%clk 0:01:40]}  Rxe5 {[%clk 0:02:35]} 21. Nd6 {[%clk 0:01:36]}  b5 {[%clk 0:02:23]} 22. Rc1 {[%clk 0:01:19]}  Qf8 {[%clk 0:02:03]} 23. Rfd1 {[%clk 0:01:14]}  Rd8 {[%clk 0:02:00]} 24. Nf5 {[%clk 0:01:07]}  Rxd1+ {[%clk 0:02:00]} 25. Rxd1 {[%clk 0:01:08]}  g6 {[%clk 0:01:58]} 26. Ng3 {[%clk 0:01:01]}  Kg7 {[%clk 0:01:57]} 27. Qf4 {[%clk 0:00:59]}  Qe7 {[%clk 0:01:55]} 28. Kg1 {[%clk 0:00:56]}  Rc5 {[%clk 0:01:37]} 29. e4 {[%clk 0:00:52]}  Re5 {[%clk 0:01:24]} 30. f3 {[%clk 0:00:42]}  Qc5+ {[%clk 0:01:24]} 31. Kf1 {[%clk 0:00:39]}  Nh5 {[%clk 0:01:25]} 32. Nxh5+ {[%clk 0:00:28]}  Rxh5 {[%clk 0:01:26]} 33. Ke2 {[%clk 0:00:28]}  Rg5 {[%clk 0:01:14]} 34. g4 {[%clk 0:00:27]}  Re5 {[%clk 0:01:12]} 35. Qe3 {[%clk 0:00:23]}  Qe7 {[%clk 0:00:49]} 36. Qd4 {[%clk 0:00:23]}  Qf6 {[%clk 0:00:48]} 37. Rc1 {[%clk 0:00:16]}  h5 {[%clk 0:00:32]} 38. gxh5 {[%clk 0:00:16]}  gxh5 {[%clk 0:00:33]} 39. Rg1+ {[%clk 0:00:15]}  Kh7 {[%clk 0:00:34]} 40. Qe3 {[%clk 0:00:11]}  Re8 {[%clk 0:00:23]} 41. Rg5 {[%clk 0:00:10]}  Re5 {[%clk 0:00:23]} 42. Rg1 {[%clk 0:00:07]}  Re8 {[%clk 0:00:23]} 43. Rg5 {[%clk 0:00:07]}  Re5 {[%clk 0:00:22]} 44. Rg1 {[%clk 0:00:07]} 1/2-1/2


[Site "https://www.chess.com"]